bitfinex/quotes_ETHUSD_20220118
["timestamp","ask_amount","ask_price","bid_price","bid_amount"]
[1642480561830,2.58918296,3179.1,3179.0,2.68989226]
[1642480562028,3.1903198,3179.1,3179.0,2.68989226]
[1642480562236,3.1903198,3179.1,3178.2,5.37813863]
[1642480562237,5.0,3178.9,3178.2,5.37813863]
[1642480562431,21.1386724,3179.0,3178.3,4.03452169]
[1642480562630,1.47622588,3178.4,3178.3,4.03679538]
[1642480563034,2.88483049,3178.4,3178.3,4.03679538]
[1642480563472,2.88483049,3178.4,3178.3,0.00227369]
[1642480563873,2.88483049,3178.4,3178.1,0.00341054]
[1642480564172,3.18483049,3178.4,3178.1,0.00341054]
[1642480564372,2.88483049,3178.4,3178.1,0.00341054]
[1642480564572,3.18483049,3178.4,3178.2,0.05447245]
[1642480564774,0.1258,3178.3,3178.1,0.00341054]
[1642480564977,2.88483049,3178.4,3178.1,0.00341054]
[1642480572479,0.1258,3178.8,3178.1,0.00341054]
[1642480572680,0.1258,3178.8,3178.2,0.09795791]
[1642480572878,0.00113685,3178.9,3178.2,0.09795791]
[1642480573080,0.00113685,3178.9,3178.1,1.00341054]
[1642480573284,0.00113685,3178.9,3178.2,0.896]
[1642480573479,0.00113685,3178.9,3178.2,1.34584212]
[1642480573883,1.51143476,3178.6,3178.2,1.34584212]
[1642480574080,0.00113685,3178.9,3178.3,0.1258]
[1642480574529,0.00113685,3178.9,3178.4,0.00170527]
[1642480574728,0.00113685,3178.9,3178.5,0.1258]
[1642480576627,0.00113685,3178.9,3178.5,1.1258]
[1642480577030,0.00113685,3178.9,3178.5,0.1258]
[1642480578034,0.00113685,3178.9,3178.5,3.18896079]
[1642480578288,0.00113685,3178.9,3178.5,3.63596079]
[1642480578487,0.00113685,3178.9,3178.7,0.05283598]
[1642480578685,0.00113685,3178.9,3178.6,1.0]
[1642480578885,1.11732433,3180.0,3178.8,1.62646978]
[1642480579086,1.11732433,3180.0,3178.9,0.447]
[1642480579289,0.00227369,3179.3,3178.9,0.447]
[1642480579691,0.00170527,3179.2,3178.9,0.447]
[1642480579892,0.00170527,3179.2,3178.9,0.5728]
[1642480580091,0.00113684,3179.1,3178.9,0.8728]
[1642480580291,0.00113684,3179.1,3178.9,3.97469626]
[1642480580491,0.00560224,3180.0,3178.9,3.97469626]
[1642480580492,0.00568423,3179.9,3179.0,4.19873724]
[1642480580691,0.00568423,3179.9,3179.1,0.1258]
[1642480580893,0.00511581,3179.8,3179.1,0.1258]
[1642480581096,1.37398755,3179.7,3179.1,0.4258]
[1642480581292,0.00454738,3179.7,3179.1,0.1258]
[1642480581494,0.00397896,3179.6,3179.2,3.41513037]
[1642480581693,0.00397896,3179.6,3179.3,1.5728]
[1642480581893,0.00341054,3179.5,3179.3,1.8728]
[1642480582133,0.00341054,3179.5,3179.4,8.58203341]
[1642480582335,0.00560224,3180.0,3179.4,3.70483341]
[1642480582534,0.00560224,3180.0,3179.5,0.1257]
[1642480582736,0.00568423,3179.9,3179.6,0.447]
[1642480582935,0.00568423,3179.9,3179.7,3.40778741]
[1642480583134,0.00560224,3180.0,3179.8,1.447]
[1642480583336,0.00560224,3180.0,3179.9,0.1257]
[1642480583536,0.00560224,3180.0,3179.9,1.1467]
[1642480584336,1.091356,3180.1,3179.9,1.1467]
[1642480584936,0.1257,3180.9,3179.9,1.1467]
[1642480585139,11.44456871,3182.0,3179.9,1.1467]
[1642480585140,2.54554678,3181.0,3179.9,1.1467]
[1642480585437,0.00795793,3180.3,3179.9,2.1467]
[1642480585879,0.0073895,3180.2,3179.9,2.1467]
[1642480586079,0.0073895,3180.2,3179.9,1.1467]
[1642480586283,0.00682108,3180.1,3179.9,2.1467]
[1642480586680,0.00625265,3180.0,3179.9,5.25840294]
[1642480587083,0.1257,3181.4,3180.0,5.75]
[1642480587084,1.43185634,3181.2,3180.0,5.75]
[1642480587283,1.43185634,3181.2,3180.1,0.5727]
[1642480587484,0.00170528,3180.3,3180.1,1.5727]
[1642480587684,0.1021034,3180.4,3180.2,3.19922759]
[1642480587887,0.1257,3181.6,3180.3,1.447]
[1642480588086,0.1257,3181.9,3180.4,0.06521943]
[1642480588286,0.0757,3181.9,3181.2,2.0]
[1642480588485,0.1257,3182.6,3181.2,2.9616]
[1642480588888,1.28205787,3181.8,3181.2,2.9616]
[1642480589286,0.00795792,3181.7,3181.2,2.9616]
[1642480589530,0.00795792,3181.7,3181.2,3.0873]
[1642480589728,1.26221285,3181.3,3180.6,1.6139976]
[1642480589928,1.43520274,3180.8,3180.6,1.6139976]
[1642480590127,1.44163618,3180.7,3180.6,1.6139976]
[1642480590326,1.44390987,3180.7,3180.6,1.6139976]
[1642480590526,0.00227369,3180.7,3180.6,1.6139976]
[1642480591132,0.00227369,3180.7,3180.1,2.0609976]
[1642480591333,0.00227369,3180.7,3180.3,0.6]
[1642480591536,0.00170527,3180.6,3180.4,0.1257]
[1642480591933,0.00113684,3180.5,3180.4,0.1257]
[1642480592131,0.00113684,3180.5,3180.4,5.55]
[1642480592333,0.1257,3182.0,3180.5,3.85]
[1642480592532,0.1257,3182.0,3180.6,3.17283018]
[1642480592733,0.00454739,3181.3,3180.6,6.17283018]
[1642480592932,1.56420881,3181.0,3180.6,6.17283018]
[1642480593135,0.1257,3181.8,3180.6,6.61983018]
[1642480593136,0.00397897,3181.2,3180.6,6.61983018]
[1642480593384,0.0022737,3180.9,3180.6,2.7862]
[1642480593585,0.00341054,3181.1,3180.8,2.0]
[1642480593784,0.1257,3181.8,3180.8,2.0]
[1642480593982,0.1257,3181.8,3180.6,1.447]
[1642480594187,1.13833093,3180.9,3180.6,0.447]
[1642480594586,0.00170527,3180.8,3180.6,1.447]
[1642480594787,0.00170527,3180.8,3180.7,2.0]
[1642480594984,1.13833093,3180.9,3180.7,2.3]
[1642480595185,1.13833093,3180.9,3180.7,3.4257]
[1642480595386,0.32841444,3181.7,3180.7,2.4257]
[1642480595686,0.00397897,3181.2,3180.8,3.0]
[1642480595885,0.00397897,3181.2,3180.8,3.0367]
[1642480596084,0.00341054,3181.1,3181.0,0.3]
[1642480596702,0.00341054,3181.1,3181.0,2.4257]
[1642480596886,0.00341054,3181.1,3181.0,2.1257]
[1642480597734,0.00341054,3181.1,3181.0,3.0]
[1642480598734,0.00341054,3181.1,3181.0,3.3]
[1642480598934,0.00341054,3181.1,3181.0,0.1257]
[1642480599337,0.00341054,3181.1,3180.8,0.1257]
[1642480599533,0.00341054,3181.1,3180.8,0.5727]
[1642480599735,1.52946165,3180.9,3180.8,0.5727]
[1642480600134,0.0022737,3180.9,3180.8,0.8727]
[1642480600782,0.0022737,3180.9,3180.8,0.5727]
[1642480600981,0.0022737,3180.9,3180.8,0.447]
[1642480601582,1.53057423,3180.9,3180.8,0.447]
[1642480601992,1.53057423,3180.9,3180.4,0.1257]
[1642480602187,1.53057423,3180.9,3180.3,3.22792448]
[1642480602188,0.1257,3180.8,3180.3,3.22792448]
[1642480602387,0.1257,3180.8,3179.8,12.1095056]
[1642480602388,0.12740527,3180.8,3180.2,2.4204117]
[1642480602586,1.52830053,3180.9,3180.2,2.4204117]
[1642480602587,1.25341216,3180.3,3180.2,2.4204117]
[1642480603492,1.25341216,3180.3,3179.9,2.5461117]
[1642480603790,1.25341216,3180.3,3180.0,0.00284212]
[1642480605429,1.25341216,3180.3,3180.0,2.69097888]
[1642480605630,1.25341216,3180.3,3180.1,1.0]
[1642480605832,1.25341216,3180.3,3180.1,1.00227369]
[1642480606031,1.25341216,3180.3,3180.2,0.00170527]
[1642480606632,1.25341216,3180.3,3180.1,0.00227369]
[1642480607634,1.25341216,3180.3,3180.2,2.68813676]
[1642480608036,0.00170527,3180.8,3180.2,3.98984203]
[1642480608482,0.00113685,3180.7,3180.4,0.04958702]
[1642480608781,1.53154628,3181.0,3180.3,1.00113684]
[1642480609185,1.54610309,3180.5,3180.3,0.00113684]
[1642480609386,1.54610309,3180.5,3180.4,1.61283767]
[1642480609588,1.54610309,3180.5,3180.4,1.91283767]
[1642480609889,1.54610309,3180.5,3180.4,2.21283767]
[1642480610085,1.54610309,3180.5,3180.4,1.61283767]
[1642480612135,1.54610309,3180.5,3180.3,1.73967451]
[1642480612734,1.54610309,3180.5,3180.3,1.61397451]
[1642480613936,2.86430186,3180.5,3180.3,1.61397451]
[1642480614539,1.54610309,3180.5,3180.3,1.61397451]
[1642480614938,1.54610309,3180.5,3180.3,0.00113684]
[1642480615639,1.54610309,3180.5,3180.3,1.61397451]
[1642480615878,1.54610309,3180.5,3180.3,1.91397451]
[1642480616078,1.54610309,3180.5,3180.3,2.21397451]
[1642480616280,1.54610309,3180.5,3180.4,3.04226479]
[1642480616478,0.0022737,3180.9,3180.4,3.04226479]
[1642480616678,0.0022737,3180.9,3180.5,1.0]
[1642480616877,0.1257,3181.8,3180.6,3.2622821]
[1642480616878,0.00170527,3180.8,3180.6,3.2622821]
[1642480617081,0.00170527,3180.8,3180.7,1.0]
[1642480617280,0.00113685,3180.7,3180.6,3.08152804]
[1642480617483,0.00170527,3180.8,3180.6,3.08152804]
[1642480617684,0.00113685,3180.7,3180.6,2.95582804]
[1642480617881,0.00113685,3180.7,3180.6,0.1257]
[1642480618082,0.1257,3181.8,3180.7,4.9]
[1642480618284,22.1985,3182.6,3180.8,4.64339039]
[1642480618285,0.1257,3182.3,3180.8,4.64339039]
[1642480618481,0.00170527,3181.0,3180.8,5.24339039]
[1642480618680,0.00170527,3181.0,3180.9,2.9883321]
[1642480618881,0.00113685,3180.9,3180.8,0.7257]
[1642480619282,0.00113685,3180.9,3180.8,0.4257]
[1642480620341,0.00113685,3180.9,3180.8,0.9257]
[1642480620538,0.00113685,3180.9,3180.8,3.04048955]
[1642480620737,0.00113685,3180.9,3180.8,1.6727]
[1642480621838,0.00113685,3180.9,3180.8,1.0727]
[1642480622037,0.00113685,3180.9,3180.8,0.947]
[1642480622637,0.00113685,3180.9,3180.8,0.447]
[1642480622838,0.00113685,3180.9,3180.4,0.1257]
[1642480623043,0.00113685,3180.9,3180.2,0.1257]
[1642480623294,0.00113685,3180.9,3180.5,0.00113684]
[1642480623480,0.00113685,3180.9,3180.3,0.00227369]
[1642480623679,1.27441891,3180.4,3180.0,0.00397897]
[1642480623879,1.35511566,3180.3,3180.0,0.00397897]
[1642480625688,1.48081566,3180.3,3180.0,0.00397897]
[1642480625985,1.48081566,3180.3,3179.3,0.447]
[1642480625986,2.75,3180.2,3179.3,0.49990743]
[1642480626182,0.1257,3180.1,3179.3,0.49990743]
[1642480626381,0.12683685,3180.2,3179.4,0.00341054]
[1642480626582,1.49672952,3179.6,3179.4,0.00341054]
[1642480626785,1.23648553,3179.5,3179.2,0.00454738]
[1642480627338,0.00113685,3180.2,3179.2,0.00454738]
[1642480627537,0.1257,3180.1,3179.2,0.00454738]
[1642480627940,0.1257,3180.1,3179.2,1.00454738]
[1642480628141,0.1257,3180.1,3179.2,1.30454738]
[1642480628344,0.1257,3180.1,3179.3,0.00397896]
[1642480628541,0.1257,3180.1,3179.3,2.9618595]
[1642480628542,1.21809142,3180.1,3179.3,2.9618595]
[1642480628941,1.21809142,3180.1,3179.4,2.4204117]
[1642480629441,1.21809142,3180.1,3179.5,0.00284211]
[1642480629643,0.00113685,3180.2,3179.6,0.1257]
[1642480629844,0.00113685,3180.2,3179.7,2.4204117]
[1642480630043,0.1257,3180.1,3179.7,2.42211697]
[1642480630244,0.1257,3180.1,3179.7,2.7204117]
[1642480630910,1.55997998,3180.0,3179.6,2.68806704]
[1642480631107,1.55997998,3180.0,3179.6,2.98806704]
[1642480631308,1.33838074,3179.9,3179.7,0.00170527]
[1642480632307,1.28838074,3179.9,3179.7,0.00170527]
[1642480632508,1.28838074,3179.9,3179.7,2.68977231]
[1642480632909,1.28838074,3179.9,3179.8,0.00113684]
[1642480633108,1.55997998,3180.0,3179.8,0.00113684]
[1642480633309,0.00113685,3180.2,3179.8,0.00113684]
[1642480634307,0.00113685,3180.2,3179.8,2.68920388]
[1642480634538,0.00113685,3180.2,3179.8,2.98920388]
[1642480634735,2.44189841,3180.1,3179.8,2.98920388]
[1642480634934,2.44189841,3180.1,3179.8,1.91393059]
[1642480635534,1.13785589,3180.1,3179.8,1.91393059]
[1642480635736,1.13785589,3180.1,3179.9,2.68806704]
[1642480636536,1.13785589,3180.1,3179.8,1.61393059]
[1642480639590,1.13785589,3180.1,3179.8,0.00113684]
[1642480640794,1.13785589,3180.1,3179.8,2.68920388]
[1642480640993,2.40479731,3180.1,3179.8,2.68920388]
[1642480641795,2.40479731,3180.1,3179.8,0.00113684]
[1642480642252,0.1257,3180.0,3179.8,0.00113684]
[1642480642653,0.1257,3180.0,3179.9,2.68806704]
[1642480643153,2.8257,3180.0,3179.8,0.00113684]
[1642480643354,0.1257,3180.0,3179.8,0.00113684]
[1642480644151,1.45932241,3179.4,3179.3,0.00397896]
[1642480644352,2.84351066,3179.4,3179.3,0.00397896]
[1642480645553,1.38418825,3179.4,3179.3,0.00397896]
[1642480646184,0.1257,3180.0,3179.0,0.00568423]
[1642480646386,0.1258,3180.1,3179.0,2.95279429]
[1642480646589,0.00113685,3180.2,3179.2,0.05177316]
[1642480646786,0.00113685,3180.2,3179.3,0.1257]
[1642480646985,0.00113685,3180.2,3179.3,0.00397896]
[1642480647184,1.27195271,3179.6,3179.4,0.12911054]
[1642480647385,1.27195271,3179.6,3179.4,0.1257]
[1642480647584,1.27195271,3179.6,3179.5,0.00284211]
[1642480649832,1.27195271,3179.6,3179.5,0.30284211]
[1642480650031,1.27195271,3179.6,3179.5,0.00284211]
[1642480650233,1.27195271,3179.6,3179.5,0.30284211]
[1642480654993,1.27195271,3179.6,3179.5,0.00284211]
[1642480655391,1.27195271,3179.6,3179.1,0.00511581]
[1642480655392,1.33597288,3179.4,3179.1,0.00511581]
[1642480658140,1.33597288,3179.4,3178.8,0.00682108]
[1642480658340,1.31755723,3178.9,3178.8,0.00682108]
[1642480658941,0.20563112,3179.3,3178.9,2.45692116]
[1642480659142,1.29754451,3179.2,3178.9,3.05692116]
[1642480659342,1.29754451,3179.2,3179.0,0.00568423]
[1642480663789,0.20563112,3179.3,3179.0,0.00568423]
[1642480663990,0.20563112,3179.3,3179.1,2.98847008]
[1642480664390,0.20563112,3179.3,3179.2,0.00454738]
[1642480664636,1.57193082,3179.3,3179.2,0.00454738]
[1642480665034,1.57193082,3179.3,3179.0,0.00568423]
[1642480666341,1.57193082,3179.3,3179.1,5.10884316]
[1642480666541,1.57193082,3179.3,3179.1,5.40884316]
[1642480666741,1.57193082,3179.3,3179.2,0.00454738]
[1642480668144,1.57193082,3179.3,3179.2,2.69297884]
[1642480671620,1.57193082,3179.3,3179.2,2.64307884]
[1642480671822,1.57193082,3179.3,3179.2,4.25615589]
[1642480672249,1.69773082,3179.3,3179.2,4.25615589]
[1642480672448,1.57193082,3179.3,3179.2,4.25615589]
[1642480672652,1.57193082,3179.3,3179.1,1.61307705]
[1642480673850,1.57193082,3179.3,3179.0,1.61307705]
[1642480674754,1.57193082,3179.3,3178.9,2.45692116]
[1642480674955,0.1258,3179.2,3178.9,2.45692116]
[1642480675159,0.1258,3179.2,3179.0,0.00113685]
[1642480678112,5.5,3179.0,3178.0,4.13875461]
[1642480678309,2.90603042,3178.9,3178.0,4.13875461]
[1642480678508,2.90603042,3178.9,3178.1,0.00511581]
[1642480678509,4.65303042,3178.9,3178.1,0.00511581]
[1642480678706,20.2628,3178.9,3178.1,0.00511581]
[1642480679107,1.32822127,3178.8,3178.1,0.00511581]
[1642480679307,0.1258,3178.7,3178.1,0.00511581]
[1642480680145,18.39,3178.6,3178.1,0.00511581]
[1642480680350,1.15706018,3178.4,3178.1,0.00511581]
[1642480681346,2.72856283,3178.3,3178.1,0.00511581]
[1642480681648,1.22348052,3178.2,3178.1,0.00511581]
[1642480683389,1.33381367,3178.2,3178.1,0.00511581]
[1642480683990,1.33181367,3178.2,3178.1,0.00511581]
[1642480685295,4.17026017,3178.2,3178.1,0.00511581]
[1642480685500,5.29606017,3178.2,3178.1,0.00511581]
[1642480685695,4.8,3178.1,3177.1,1.73887705]
[1642480685896,3.38987168,3178.0,3177.1,1.61307705]
[1642480686096,1.08905723,3177.9,3177.2,0.00511581]
[1642480686496,2.08905723,3177.9,3177.2,0.00511581]
[1642480686697,1.08905723,3177.9,3177.2,0.00511581]
[1642480686896,1.27129502,3177.7,3177.2,0.00511581]
[1642480687144,1.27129502,3177.7,3177.0,0.00625266]
[1642480688346,1.27129502,3177.7,3176.8,0.00738951]
[1642480690149,1.2623457,3176.9,3176.8,0.00738951]
[1642480690350,2.66004834,3176.9,3176.8,0.00738951]
[1642480691386,5.8471654,3177.8,3176.9,1.64388592]
[1642480691587,1.47436213,3177.1,3176.9,1.64388592]
[1642480691786,1.47436213,3177.1,3177.0,0.00625266]
[1642480692991,2.62193367,3177.1,3177.0,0.00625266]
[1642480693192,2.62193367,3177.1,3177.0,2.69616223]
[1642480695945,0.1259,3177.9,3177.1,0.06600546]
[1642480696143,1.37046448,3179.1,3177.4,0.01232851]
[1642480696144,4.5797,3178.3,3177.4,0.01232851]
[1642480696342,1.17793685,3178.3,3177.4,0.01232851]
[1642480696543,1.17793685,3178.3,3177.5,0.00341054]
[1642480697041,1.50101789,3177.8,3177.5,0.00341054]
[1642480697746,1.50101789,3177.8,3177.7,1.61368291]
[1642480698045,1.50101789,3177.8,3177.7,1.6159566]
[1642480698893,1.50101789,3177.8,3177.7,0.00227369]
[1642480699295,1.50101789,3177.8,3177.6,2.69275169]
[1642480699493,1.50101789,3177.8,3177.7,0.00227369]
[1642480699694,1.17793685,3178.3,3177.7,0.00227369]
[1642480699894,0.00113685,3178.3,3177.8,0.05275581]
[1642480700095,0.00113685,3178.3,3177.8,0.1258]
[1642480700297,0.00113685,3178.3,3177.9,0.00113685]
[1642480700496,0.00113685,3178.3,3178.0,0.04987758]
[1642480700696,1.23811941,3178.3,3177.9,0.00113685]
[1642480700895,1.23811941,3178.3,3178.0,1.6136407]
[1642480701099,1.54047577,3178.2,3178.0,1.6136407]
[1642480702346,1.54047577,3178.2,3178.1,1.6136407]
[1642480703748,1.66627577,3178.2,3178.1,1.6136407]
[1642480704445,1.66627577,3178.2,3177.9,2.42154855]
[1642480704446,1.66627577,3178.2,3177.9,0.00113685]
[1642480704745,0.1258,3178.1,3177.9,0.00113685]
[1642480705546,0.1258,3178.1,3177.9,0.05920903]
[1642480705787,0.1258,3178.1,3177.9,0.00113685]
[1642480706188,0.1258,3178.1,3177.8,0.00170527]
[1642480706391,0.1258,3178.1,3178.0,2.68990957]
[1642480707792,0.1258,3178.1,3177.8,0.00170527]
[1642480708192,0.1258,3178.1,3177.5,0.00341054]
[1642480708394,1.22574199,3177.6,3177.5,0.05306315]
[1642480708593,1.22574199,3177.6,3177.5,0.00341054]
[1642480708796,1.22574199,3177.6,3177.5,2.69332011]
[1642480709640,2.53228027,3177.6,3177.5,2.69332011]
[1642480711149,1.22574199,3177.6,3177.5,2.69332011]
[1642480711749,1.22574199,3177.6,3177.5,4.30696081]
[1642480711949,0.1258,3178.2,3177.5,4.30696081]
[1642480712150,1.4129172,3177.9,3177.5,4.30696081]
[1642480712351,1.4129172,3177.9,3177.6,0.00284212]
[1642480713795,1.21333201,3178.1,3177.8,0.01217816]
[1642480714200,1.21333201,3178.1,3177.9,0.00113685]
[1642480714395,1.21333201,3178.1,3177.9,0.12693685]
[1642480714795,1.47887555,3178.0,3177.9,0.00113685]
[1642480715195,1.47887555,3178.0,3177.8,0.00170527]
[1642480715996,1.47887555,3178.0,3177.8,2.42211697]
[1642480716596,1.47887555,3178.0,3177.9,0.00113685]
[1642480716800,1.60467555,3178.0,3177.9,0.00113685]
[1642480717446,1.60467555,3178.0,3177.6,0.00284212]
[1642480717646,0.1258,3177.9,3177.6,0.00284212]
[1642480718045,1.1258,3177.9,3177.5,0.00341054]
[1642480718245,0.1258,3177.9,3177.5,0.00341054]
[1642480718444,1.1258,3177.9,3177.5,0.00341054]
[1642480718644,0.1258,3177.9,3177.5,0.00341054]
[1642480718844,1.1258,3177.9,3177.5,0.00341054]
[1642480719244,0.1258,3177.9,3177.5,0.00341054]
[1642480719451,1.17659464,3177.6,3177.5,0.00341054]
[1642480719645,1.47887555,3178.0,3177.5,0.00341054]
[1642480719847,0.1258,3177.9,3177.5,0.00341054]
[1642480720650,1.51383907,3177.8,3177.5,0.00341054]
[1642480721091,1.33,3177.7,3177.5,0.00341054]
[1642480721294,1.33,3177.7,3177.5,3.04457716]
[1642480721791,1.33,3177.7,3177.6,2.42325382]
[1642480723597,1.33,3177.7,3177.6,0.00284212]
[1642480725040,1.33,3177.7,3177.6,2.41578705]
[1642480726645,1.33,3177.7,3177.6,0.00284212]
[1642480727549,1.54487348,3177.8,3177.7,1.87264226]
[1642480727948,1.54487348,3177.8,3177.7,1.87491595]
[1642480729995,1.54487348,3177.8,3177.7,4.28644503]
[1642480730895,0.1258,3178.8,3177.8,0.1258]
[1642480731101,1.1737,3179.1,3177.9,0.07741246]
[1642480731297,0.1258,3179.2,3178.0,0.1258]
[1642480731298,0.00113685,3178.3,3178.0,0.1258]
[1642480731498,0.00113685,3178.3,3178.0,0.5728]
[1642480731695,0.00568423,3179.1,3178.0,1.5728]
[1642480731895,0.00568423,3179.1,3178.0,2.1728]
[1642480732144,0.00511581,3179.0,3178.0,2.1728]
[1642480732351,1.36217582,3178.8,3178.2,1.17986613]
[1642480732544,1.36217582,3178.8,3178.3,0.1258]
[1642480732744,0.00341054,3178.7,3178.3,0.1258]
[1642480733146,0.00284212,3178.6,3178.3,0.1258]
[1642480733545,0.00227369,3178.5,3178.3,0.1258]
[1642480733747,0.00227369,3178.5,3178.4,2.68889865]
[1642480733947,1.36217582,3178.8,3178.4,2.81469865]
[1642480734146,1.36217582,3178.8,3178.5,0.1258]
[1642480734346,0.00341054,3178.7,3178.5,0.1258]
[1642480734747,0.00284212,3178.6,3178.5,0.1258]
[1642480734952,0.00284212,3178.6,3178.5,6.3728]
[1642480735147,0.00284212,3178.6,3178.5,1.5728]
[1642480736900,0.00284212,3178.6,3178.5,4.9228]
[1642480737098,0.00284212,3178.6,3178.5,5.9228]
[1642480737503,0.1258,3180.4,3178.6,5.75]
[1642480737699,0.1258,3180.4,3178.7,1.56014964]
[1642480737898,0.1258,3180.4,3178.7,0.7258]
[1642480737899,0.00397896,3179.3,3178.7,0.7258]
[1642480738298,0.00341054,3179.2,3178.7,4.5983]
[1642480738500,1.53183085,3178.8,3178.7,4.5983]
[1642480738700,1.53183085,3178.8,3178.7,0.7258]
[1642480738900,1.53296769,3178.8,3178.7,0.7258]
[1642480739100,0.00113684,3178.8,3178.7,0.1258]
[1642480740543,1.44945551,3179.2,3178.7,0.1258]
[1642480740949,0.00170527,3179.1,3178.7,0.1258]
[1642480741347,0.00113685,3179.0,3178.7,0.1258]
[1642480743150,1.29225853,3179.4,3178.8,4.2]
[1642480743391,1.49243869,3179.3,3178.8,5.41234403]
[1642480743591,1.49243869,3179.3,3178.9,0.1258]
[1642480743592,1.49414396,3179.3,3178.9,0.1258]
[1642480743791,0.00113685,3179.2,3178.8,0.60113685]
[1642480743991,0.00113685,3179.2,3178.8,0.30113685]
[1642480744192,0.00113685,3179.2,3178.8,0.00113685]
[1642480745192,1.2520995,3179.1,3178.8,0.00113685]
[1642480745596,0.00113685,3179.2,3178.8,0.00113685]
[1642480745797,0.00113685,3179.2,3178.9,0.447]
[1642480745997,0.00113685,3179.2,3178.9,0.747]
[1642480746198,0.00113685,3179.2,3178.9,0.78453241]
[1642480746399,0.00113685,3179.2,3178.9,1.08453241]
[1642480746599,0.00113685,3179.2,3178.9,4.6863]
[1642480746898,0.00113685,3179.2,3178.9,4.72578856]
[1642480747153,0.00113685,3179.2,3179.0,0.1258]
[1642480747354,0.00113685,3179.2,3179.0,0.5728]
[1642480747552,0.00113685,3179.2,3179.0,1.1728]
[1642480748355,0.11084064,3179.2,3179.0,1.1728]
[1642480752999,0.11084064,3179.2,3179.0,1.047]
[1642480753204,0.00113685,3179.2,3179.0,1.047]
[1642480754674,0.00113685,3179.2,3179.1,2.68758025]
[1642480757777,0.00113685,3179.2,3179.1,5.09599004]
[1642480758598,1.47378926,3179.3,3179.2,0.00143091]
[1642480759606,1.47378926,3179.3,3179.2,0.30143091]
[1642480760106,1.47378926,3179.3,3179.2,4.29465989]
[1642480760502,1.47378926,3179.3,3179.2,7.52393516]
[1642480760703,1.47378926,3179.3,3179.2,4.59465989]
[1642480761107,1.47378926,3179.3,3179.2,5.92702609]
[1642480761310,1.47378926,3179.3,3179.2,8.33543588]
[1642480761909,1.47378926,3179.3,3179.2,8.35143999]
[1642480762354,1.47378926,3179.3,3179.2,2.98901116]
[1642480764259,0.1258,3180.5,3179.2,8.29288338]
[1642480764459,0.1257,3180.3,3179.2,8.29288338]
[1642480764660,0.00341054,3179.8,3179.2,8.41858338]
[1642480765061,0.00284211,3179.7,3179.2,8.41858338]
[1642480765262,0.00284211,3179.7,3179.6,3.2134309]
[1642480765560,2.68804851,3180.2,3179.6,3.8134309]
[1642480766015,2.69373274,3180.2,3179.6,3.8134309]
[1642480766213,2.69373274,3180.2,3179.6,0.3]
[1642480766413,2.69373274,3180.2,3179.5,3.5134309]
[1642480767015,2.69373274,3180.2,3179.7,3.28758025]
[1642480768015,2.69373274,3180.2,3179.8,2.68758025]
[1642480768415,2.69373274,3180.2,3179.8,2.98758025]
[1642480768916,2.69373274,3180.2,3179.8,0.3]
[1642480769316,2.69373274,3180.2,3179.5,3.8134309]
[1642480769755,1.1446245,3179.6,3179.5,3.8134309]
[1642480770158,1.14689819,3179.6,3179.5,3.8134309]
[1642480770759,1.14689819,3179.6,3179.5,3.28758025]
[1642480773606,1.14689819,3179.6,3179.5,6.50101115]
[1642480776012,1.14689819,3179.6,3179.5,3.28758025]
[1642480777454,1.14689819,3179.6,3179.5,2.98758025]
[1642480778855,1.14689819,3179.6,3179.2,3.21486181]
[1642480779059,0.1258,3179.5,3179.2,3.21486181]
[1642480779255,0.12750527,3179.5,3179.2,3.21486181]
[1642480779454,0.00113684,3179.4,3179.2,3.21486181]
[1642480780258,0.00113684,3179.4,3179.2,3.51486181]
[1642480780659,0.00113684,3179.4,3179.2,0.30143091]
[1642480781099,0.00113684,3179.4,3179.2,0.00143091]
[1642480781999,0.00113684,3179.4,3179.2,2.42069607]
[1642480782402,0.00113684,3179.4,3179.2,2.72069607]
[1642480783403,0.00113684,3179.4,3179.2,0.30143091]
[1642480783604,0.00113684,3179.4,3179.2,0.00143091]
[1642480787055,0.00113684,3179.4,3179.2,0.09077172]
[1642480787259,0.00113684,3179.4,3179.2,2.42069607]
[1642480787458,0.00113684,3179.4,3179.2,2.72069607]
[1642480788704,0.00113684,3179.4,3179.3,0.1258]
[1642480789507,0.00113684,3179.4,3179.2,0.60143091]
[1642480789706,0.00113684,3179.4,3179.2,1.30143091]
[1642480790105,0.00113684,3179.4,3179.3,0.1258]
[1642480791605,0.00113684,3179.4,3179.3,0.4258]
[1642480791806,0.00113684,3179.4,3179.3,0.3]
[1642480792063,0.00113684,3179.4,3179.2,0.00143091]
[1642480792866,0.00113684,3179.4,3179.3,2.41909892]
[1642480793066,0.00113684,3179.4,3179.3,2.71909892]
[1642480799751,0.00113684,3179.4,3179.3,5.4070008]
[1642480800451,0.00113684,3179.4,3179.3,2.71909892]
[1642480800953,0.00113684,3179.4,3179.3,5.4070008]
[1642480801859,0.00113684,3179.4,3179.3,9.55354563]
[1642480802562,0.00113684,3179.4,3179.3,7.13444671]
[1642480802758,0.00113684,3179.4,3179.3,4.11370188]
[1642480803802,1.1446245,3179.6,3179.4,0.00135464]
[1642480804102,0.1258,3179.9,3179.5,0.1258]
[1642480804401,0.0022737,3179.8,3179.5,0.1258]
[1642480804804,0.00170527,3179.7,3179.5,0.1258]
[1642480805208,0.00113685,3179.6,3179.5,0.1258]
[1642480806206,0.00113685,3179.6,3179.5,1.1258]
[1642480806905,0.00113685,3179.6,3179.5,0.1258]
[1642480807762,0.00113685,3179.6,3179.5,3.22509628]
[1642480808159,0.00113685,3179.6,3179.5,4.22509628]
[1642480808861,0.00113685,3179.6,3179.5,1.0]
[1642480811527,0.00113685,3179.6,3179.5,1.35790969]
[1642480811928,0.00113685,3179.6,3179.5,4.58300597]
[1642480812729,0.00113685,3179.6,3179.5,1.35790969]
[1642480812932,0.00113685,3179.6,3179.5,0.35790969]
[1642480813129,0.00113685,3179.6,3179.5,1.35790969]
[1642480813330,0.00113685,3179.6,3179.5,4.58300597]
[1642480814756,0.00113685,3179.6,3179.5,3.22509628]
[1642480814960,0.00113685,3179.6,3179.4,3.52645092]
[1642480815961,0.00113685,3179.6,3179.4,0.30135464]
[1642480816161,0.00113685,3179.6,3179.4,1.00135464]
[1642480816365,0.00113685,3179.6,3179.4,1.30135464]
[1642480816760,0.00113685,3179.6,3179.4,0.30135464]
[1642480816960,0.00113685,3179.6,3179.4,0.00135464]
[1642480818403,0.00113685,3179.6,3179.4,3.22645092]
[1642480818604,0.00113685,3179.6,3179.4,3.52645092]
[1642480818808,0.00113685,3179.6,3179.5,0.35769633]
[1642480820611,0.00113685,3179.6,3179.5,1.96420115]
[1642480821011,0.12693685,3179.6,3179.5,1.96420115]